bitfinex-derivatives/quotes_ETHF0:USTF0_20250904
["timestamp","ask_amount","ask_price","bid_price","bid_amount"]
[1756971439677,0.4958,4378.5,4378.4,0.7099]
[1756971439868,0.6862,4378.5,4378.4,0.7099]
[1756971440176,1.23606286,4378.5,4378.4,0.7099]
[1756971441979,1.35666286,4378.5,4378.4,0.52]
[1756971443374,1.35666286,4378.5,4378.4,0.2096]
[1756971444080,1.35666286,4378.5,4378.1,0.3104]
[1756971444374,1.35666286,4378.5,4377.7,3.2078]
[1756971444375,3.894,4378.3,4377.8,0.3104]
[1756971444572,0.2007,4377.4,4377.3,0.52]
[1756971444777,0.6862,4377.4,4377.3,0.9409]
[1756971445469,0.2007,4377.4,4377.3,0.9409]
[1756971445665,3.2078,4377.8,4377.4,0.3104]
[1756971445869,0.4958,4377.5,4377.4,0.7099]
[1756971446070,0.6862,4377.5,4377.4,0.7099]
[1756971446971,0.6862,4377.5,4377.4,0.52]
[1756971449081,0.6862,4377.5,4377.4,0.7099]
[1756971450484,1.23626161,4377.5,4377.4,0.52]
[1756971450680,1.23626161,4377.5,4377.4,0.7099]
[1756971452184,3.35590869,4377.5,4377.1,0.5414]
[1756971452482,0.6862,4377.2,4377.1,0.5414]
[1756971453379,0.6862,4377.2,4377.1,0.751]
[1756971454487,0.6862,4377.2,4377.1,0.52]
[1756971454687,0.4958,4377.2,4377.1,0.9409]
[1756971454882,0.2951,4377.6,4377.1,0.6305]
[1756971455084,0.6862,4377.3,4377.2,0.7099]
[1756971455586,0.6862,4377.3,4376.7,3.2078]
[1756971455886,1.99904708,4377.4,4376.4,0.231]
[1756971455887,0.6862,4376.7,4376.4,0.231]
[1756971456083,1.23652712,4376.7,4376.1,0.5414]
[1756971457587,1.23652712,4376.7,4376.1,0.3104]
[1756971457785,1.23652712,4376.7,4375.9,0.231]
[1756971458180,1.23652712,4376.7,4376.0,0.3104]
[1756971459883,1.23652712,4376.7,4376.2,0.3104]
[1756971460383,1.23652712,4376.7,4376.3,0.3104]
[1756971462789,1.46852712,4376.7,4376.6,0.85824]
[1756971463400,0.75102712,4376.7,4376.6,0.85824]
[1756971463590,0.5443,4377.0,4376.7,0.3018]
[1756971463892,0.7065,4377.0,4376.9,0.691]
[1756971464195,1.25591796,4377.0,4376.9,0.691]
[1756971464799,0.54941796,4377.0,4376.9,0.691]
[1756971465294,0.2042,4377.0,4376.9,0.691]
[1756971465492,3.5201,4377.3,4377.0,0.1201]
[1756971465700,3.5201,4377.3,4377.2,0.3018]
[1756971465701,3.2078,4377.3,4377.2,0.3018]
[1756971465994,3.96134469,4377.3,4377.2,0.691]
[1756971466194,4.46364469,4377.3,4377.2,0.691]
[1756971466595,4.46364469,4377.3,4376.6,0.46904]
[1756971466792,0.5165,4377.1,4377.0,0.3892]
[1756971467100,0.7065,4377.1,4377.0,0.8111]
[1756971467996,0.3942,4377.1,4377.0,0.8111]
[1756971468696,3.2078,4377.3,4377.0,0.5093]
[1756971469001,0.5165,4377.2,4377.1,0.691]
[1756971469599,0.7065,4376.7,4376.6,0.36384]
[1756971469803,2.70554708,4376.7,4376.6,0.16724]
[1756971469999,5.91334708,4376.7,4376.6,0.16724]
[1756971470199,6.46276244,4376.7,4376.6,0.16724]
[1756971472004,4.46371536,4376.7,4376.6,0.36384]
[1756971472305,6.46276244,4376.7,4376.6,0.16724]
[1756971475709,6.69476244,4376.7,4376.6,0.16724]
[1756971482015,6.69525837,4376.7,4376.6,0.16724]
[1756971483416,6.14534708,4376.7,4376.6,0.16724]
[1756971483714,6.69543826,4376.7,4376.6,0.16724]
[1756971484412,4.46439118,4376.7,4376.6,0.16724]
[1756971484616,4.46439118,4376.7,4376.6,0.85824]
[1756971485015,0.94429118,4376.7,4376.6,0.85824]
[1756971485511,1.25659118,4376.7,4376.6,0.66564]
[1756971485713,1.25659118,4376.7,4376.6,0.16724]
[1756971486017,1.48859118,4376.7,4376.6,0.16724]
[1756971489722,1.48891615,4376.7,4376.6,0.16724]
[1756971490929,3.12675452,4376.7,4376.6,0.16724]
[1756971493529,3.12675452,4376.7,4376.6,0.65264]
[1756971493731,3.12675452,4376.7,4376.6,0.16724]
[1756971494126,3.12675452,4376.7,4375.5,1.75163837]
[1756971494127,0.3042,4375.6,4375.1,0.291]
[1756971494333,0.2012,4375.2,4375.1,0.6825]
[1756971495732,0.7048,4375.2,4375.1,0.6825]
[1756971497032,0.2012,4375.2,4375.1,0.6825]
[1756971497226,0.7048,4375.2,4375.1,0.6825]
[1756971498129,2.34263837,4375.2,4375.1,0.6825]
[1756971498339,2.89290049,4375.2,4375.1,0.6825]
[1756971500236,2.34263837,4375.2,4375.1,0.6825]
[1756971501139,3.1248393,4375.2,4374.6,0.291]
[1756971501339,0.7048,4374.7,4374.6,0.6825]
[1756971502740,1.25474061,4374.7,4374.6,0.6825]
[1756971503136,1.25474061,4374.7,4374.6,0.4854]
[1756971503338,1.25474061,4374.7,4374.1,0.291]
[1756971503534,0.7048,4374.2,4374.1,0.6825]
[1756971509441,3.512,4375.4,4375.0,0.1228]
[1756971509647,0.75016901,4375.3,4375.2,0.6825]
[1756971510941,1.25376901,4375.3,4375.2,0.6825]
[1756971515047,1.25376901,4375.3,4375.2,0.4854]
[1756971515247,2.89160738,4375.3,4374.8,0.523]
[1756971515445,2.34263837,4374.9,4374.8,0.232]
[1756971515743,2.34263837,4374.9,4374.8,0.7174]
[1756971516049,2.34263837,4374.9,4374.8,0.9145]
[1756971516244,0.7048,4374.9,4374.8,0.9145]
[1756971516851,0.7048,4374.9,4374.8,0.6825]
[1756971517747,1.63783837,4375.1,4374.8,0.6825]
[1756971518051,0.5362,4375.3,4374.6,1.86983837]
[1756971518052,0.9368,4375.3,4375.2,0.6825]
[1756971518350,1.48633169,4375.3,4375.2,0.6825]
[1756971518944,1.25433169,4375.3,4375.2,0.6825]
[1756971519852,1.25433169,4375.3,4375.2,0.1944]
[1756971520043,1.25433169,4375.3,4374.8,0.232]
[1756971520245,0.95013169,4375.2,4375.1,0.4854]
[1756971520551,2.89217006,4375.2,4374.8,0.291]
[1756971520759,2.34263837,4374.9,4374.8,0.6825]
[1756971521949,2.58849525,4374.9,4374.2,0.291]
[1756971522246,2.58849525,4374.9,4373.5,0.1228]
[1756971522247,2.03893837,4374.3,4373.9,0.5263]
[1756971522451,2.33233837,4374.0,4373.9,0.4241]
[1756971522851,2.33233837,4374.0,4373.5,0.1228]
[1756971522852,2.45773837,4374.0,4373.6,0.2943]
[1756971523044,2.33233837,4373.7,4373.6,0.7184]
[1756971525245,2.33233837,4373.7,4373.6,0.4864]
[1756971525441,1.63783837,4373.7,4373.5,0.1921]
[1756971525653,0.6945,4373.6,4373.5,0.4864]
[1756971526052,0.6945,4373.6,4373.5,0.6852]
[1756971530160,0.6945,4373.6,4373.5,0.8077]
[1756971532450,0.4011,4373.6,4373.5,0.8077]
[1756971532958,0.6945,4373.6,4373.5,0.8077]
[1756971534362,1.63783837,4373.7,4373.6,0.2943]
[1756971534561,3.5012,4373.9,4373.6,0.6852]
[1756971534856,0.2089,4373.7,4373.6,0.6852]
[1756971535658,0.5023,4373.7,4373.6,0.6852]
[1756971536459,0.2089,4373.7,4373.6,2.32303837]
[1756971537862,0.4011,4373.7,4373.6,0.6852]
[1756971538160,2.33233837,4373.7,4373.6,0.4864]
[1756971538358,2.03893837,4373.7,4373.3,0.232]
[1756971538556,0.4011,4373.5,4373.4,0.1988]
[1756971538753,0.6945,4373.5,4373.4,0.9172]
[1756971540355,0.5265,4373.5,4373.0,0.1228]
[1756971540559,2.33233837,4373.1,4373.0,0.7184]
[1756971540760,0.4011,4372.6,4372.5,0.3149]
[1756971540960,0.4011,4372.6,4372.4,36.1338]
[1756971540961,2.33233837,4372.6,4372.4,0.232]
[1756971541166,0.8199,4372.5,4372.4,0.232]
[1756971541760,0.8199,4372.5,4372.4,0.7184]
[1756971541959,0.8199,4372.5,4372.4,0.4864]
[1756971542555,0.8199,4372.5,4372.1,0.2943]
[1756971542764,2.33233837,4372.2,4372.1,0.4864]
[1756971543162,2.33233837,4372.2,4371.6,0.5263]
[1756971543465,3.2078,4372.4,4371.6,0.5263]
[1756971543466,2.33233837,4371.7,4371.6,0.4864]
[1756971543656,2.33233837,4371.7,4371.6,0.6852]
[1756971544165,0.4011,4371.7,4371.6,0.6852]
[1756971544364,0.2089,4371.7,4371.6,0.6852]
[1756971545252,0.4011,4371.7,4371.6,0.6852]
[1756971545459,0.6945,4371.7,4371.6,0.6852]
[1756971547666,2.69971878,4371.7,4371.1,32.935]
[1756971547966,2.69971878,4371.7,4371.2,0.232]
[1756971548762,0.6945,4371.6,4371.5,0.6852]
[1756971550568,0.6945,4371.6,4371.1,0.2943]
[1756971550769,0.4011,4371.6,4371.5,0.6852]
[1756971551372,0.6945,4371.6,4371.5,0.6852]
[1756971552367,0.1158,4371.5,4371.2,0.232]
[1756971552566,0.7042,4371.3,4371.2,0.5151]
[1756971552763,0.7042,4371.3,4371.2,0.2025]
[1756971553262,0.7042,4371.3,4371.2,0.5151]
[1756971553669,0.7042,4371.3,4371.2,0.7172]
[1756971553965,0.7042,4371.3,4371.0,0.5446]
[1756971554272,2.00521878,4371.4,4371.1,0.5151]
[1756971554273,0.7042,4371.2,4371.1,0.5151]
[1756971554768,0.7042,4371.2,4371.1,0.7172]
[1756971555469,0.7042,4371.2,4371.1,0.5151]
[1756971555671,0.7042,4371.2,4370.7,0.232]
[1756971555868,5.21301878,4371.4,4370.7,0.232]
[1756971555869,0.7042,4370.8,4370.7,0.7471]
[1756971556070,0.7042,4370.8,4370.7,0.5151]
[1756971556666,2.70941878,4370.8,4370.4,0.5446]
[1756971556963,0.4021,4370.6,4370.5,0.5151]
[1756971557268,0.7042,4370.6,4370.5,0.7172]
[1756971557770,0.7042,4370.6,4370.5,0.8364]
[1756971560866,0.7042,4370.6,4370.5,0.7172]
[1756971564975,0.4021,4370.6,4370.4,0.232]
[1756971565270,0.7042,4370.5,4370.4,0.7471]
[1756971567168,0.7042,4370.5,4370.4,0.7172]
[1756971568280,1.25532875,4370.5,4370.4,0.7172]
[1756971569478,0.55112875,4370.5,4370.4,0.7172]
[1756971570575,3.2078,4370.9,4370.5,0.4318]
[1756971570876,0.55165953,4370.8,4370.7,2.72241878]
[1756971571078,0.55165953,4370.8,4370.7,2.95441878]
[1756971572283,0.55165953,4370.8,4370.7,0.9492]
[1756971575680,1.05115953,4370.8,4370.7,0.9492]
[1756971576479,0.74905953,4370.8,4370.7,0.9492]
[1756971576781,0.74905953,4370.8,4370.7,0.7172]
[1756971577080,1.05115953,4370.8,4370.7,0.9492]
[1756971577674,0.74905953,4370.8,4370.7,0.9492]
[1756971579179,1.05115953,4370.8,4370.7,0.7172]
[1756971579380,1.05115953,4370.8,4370.7,0.9492]
[1756971580077,1.05115953,4370.8,4370.7,0.7172]
[1756971580379,1.25585953,4370.8,4370.7,0.9492]
[1756971582887,0.7042,4370.8,4370.7,0.9492]
[1756971583086,1.25710599,4370.8,4370.7,0.9492]
[1756971584085,1.25710599,4370.8,4370.7,0.7172]
[1756971584283,1.25710599,4370.8,4370.7,0.9492]
[1756971584785,1.25710599,4370.8,4370.7,0.232]
[1756971584986,1.25710599,4370.8,4370.7,0.7454]
[1756971585185,1.25710599,4370.8,4370.7,0.952]
[1756971585688,1.25710599,4370.8,4370.7,0.72]
[1756971585882,1.25710599,4370.8,4370.7,0.952]
[1756971588086,1.25710599,4370.8,4370.7,0.7454]
[1756971588484,6.96022477,4370.8,4369.9,3.2078]
[1756971588781,3.3338,4371.0,4369.9,3.2078]
[1756971588782,0.6958,4370.1,4370.0,0.5134]
[1756971588981,1.24870599,4370.1,4370.0,0.5134]
[1756971589181,1.24870599,4370.1,4369.9,0.3131]
[1756971589387,1.37470599,4370.0,4369.9,0.3131]
[1756971589686,1.37470599,4370.0,4369.9,0.5134]
[1756971589985,1.37470599,4370.0,4369.9,0.3131]
[1756971590182,1.37470599,4370.0,4369.9,0.5134]
[1756971590583,1.24870599,4370.0,4369.9,0.72]
[1756971593283,0.6958,4370.0,4369.9,0.72]
[1756971596292,3.38115744,4370.0,4369.9,0.5134]
[1756971596485,3.38115744,4370.0,4369.7,0.5451]
[1756971596681,0.6958,4369.8,4369.7,0.5134]
[1756971596886,1.24993866,4369.8,4369.6,0.3131]
[1756971597087,0.6958,4369.8,4369.6,0.3131]
[1756971597487,1.24985636,4369.7,4369.6,0.3131]
[1756971599389,1.24985636,4369.7,4369.5,0.232]
[1756971599587,0.55374717,4369.6,4369.5,0.232]
[1756971599786,1.24954717,4369.6,4369.5,0.5451]
[1756971599980,1.24954717,4369.6,4369.5,0.5134]
[1756971600993,1.24954717,4369.6,4369.5,0.72]
[1756971601885,0.4013,4369.3,4369.2,0.7454]
[1756971602085,0.6958,4369.3,4369.2,0.5134]
[1756971602491,0.4013,4369.1,4369.0,0.5451]
[1756971602786,0.6958,4369.1,4369.0,0.7454]
[1756971603092,0.6958,4369.1,4369.0,0.2003]
[1756971603292,0.8218,4369.0,4368.9,0.232]
[1756971603491,0.8218,4369.0,4368.9,0.7454]
[1756971603792,0.6958,4369.0,4368.9,0.952]
[1756971604885,3.2078,4369.8,4368.9,0.6389]
[1756971604886,0.2945,4369.3,4368.9,0.6389]
[1756971605086,0.4897,4369.3,4369.2,0.4069]
[1756971605288,0.4897,4369.3,4369.2,0.72]
[1756971606088,0.6958,4369.3,4369.2,0.72]
[1756971608694,0.6958,4369.3,4368.9,0.232]
[1756971609088,0.2945,4369.2,4368.9,0.232]
[1756971609286,0.4013,4369.1,4369.0,0.2003]
[1756971609488,0.6958,4369.1,4369.0,0.5134]
[1756971610793,0.6958,4369.1,4369.0,0.72]
[1756971610993,0.6958,4369.1,4369.0,0.841]
[1756971611194,0.6958,4369.1,4369.0,2.48452121]
[1756971612497,11.14322121,4369.6,4369.5,0.408]
[1756971612799,11.69629011,4369.6,4369.5,0.7087]
[1756971614192,9.5479689,4369.6,4369.5,0.8279]
[1756971614392,8.794,4369.6,4369.5,0.8279]
[1756971615098,9.4997,4369.6,4369.5,0.8279]
[1756971615295,9.4997,4369.6,4369.5,0.7087]
[1756971616301,10.05339527,4369.6,4369.5,0.7087]
[1756971621407,10.05339527,4369.6,4369.2,1.64352121]
[1756971621408,1.25939527,4369.6,4369.1,1.64352121]
[1756971621593,0.3097,4369.4,4369.2,0.4383]
[1756971621798,0.7057,4369.3,4369.2,0.4383]
[1756971622207,0.7057,4369.3,4369.2,0.739]
[1756971623509,0.7057,4369.3,4369.2,0.9407]
[1756971623799,0.7057,4369.3,4368.8,0.3007]
[1756971623800,2.03952121,4369.3,4368.8,0.3007]
[1756971624000,0.7057,4368.9,4368.8,0.507]
[1756971624504,0.7057,4368.9,4368.8,0.739]
[1756971625798,0.7057,4368.9,4368.8,0.9407]
[1756971626801,0.7057,4368.9,4368.8,2.58422121]
[1756971627199,0.2009,4368.9,4368.8,0.9407]
[1756971627399,0.5106,4368.9,4368.8,2.58422121]
[1756971627695,0.5106,4368.9,4368.8,2.87302911]
[1756971627897,0.7057,4368.9,4368.8,2.87302911]
[1756971628806,1.26105119,4368.9,4368.8,1.2295079]
[1756971629001,1.26105119,4368.9,4368.8,0.9975079]
[1756971629206,1.26105119,4368.9,4368.8,0.232]
[1756971630105,1.26105119,4368.9,4368.6,0.3007]
[1756971630298,0.3097,4368.6,4368.3,1.94422121]
[1756971630493,0.8281,4368.5,4368.4,0.28876594]
[1756971630705,0.8281,4368.5,4368.4,0.82146594]
[1756971630900,0.8281,4368.5,4368.4,1.02776594]
[1756971631698,0.7057,4368.5,4368.4,1.22946594]
[1756971632103,0.7057,4369.0,4368.9,0.2063]
[1756971632406,1.26047693,4369.0,4368.9,0.7087]
[1756971635806,0.55477693,4369.0,4368.9,0.7087]
[1756971636013,3.7184,4369.3,4369.2,0.408]
[1756971636309,4.46810301,4369.3,4369.2,0.7087]
[1756971646531,4.46810301,4369.3,4369.2,0.507]
[1756971652536,0.232,4369.9,4369.3,0.3077]
[1756971652537,0.3023,4369.9,4369.3,0.3077]
[1756971652735,1.04731974,4369.8,4369.7,2.05322121]
[1756971652939,1.04731974,4369.8,4369.7,2.59292121]
[1756971653935,0.94961974,4369.8,4369.1,0.3077]
[1756971654135,0.1903,4369.3,4369.2,2.88019795]
[1756971654335,0.1903,4369.3,4369.2,3.10905795]
[1756971654535,0.3023,4369.5,4369.3,0.3077]
[1756971654734,0.4926,4369.5,4369.4,1.00467674]
[1756971655035,0.1903,4369.5,4369.4,1.00467674]
[1756971655239,0.4926,4369.5,4369.4,1.00467674]
[1756971655441,0.6972,4369.5,4369.4,1.00467674]
[1756971656545,13.64532121,4370.3,4369.8,0.3077]
[1756971656744,0.6972,4369.9,4369.8,0.7443]
[1756971657040,1.25167971,4369.9,4369.8,0.9494]
[1756971659350,1.25167971,4369.9,4369.8,0.7174]
[1756971659544,1.25167971,4369.9,4369.8,0.9494]
[1756971659545,0.55447971,4369.9,4369.8,0.9494]
[1756971659850,12.3967,4370.3,4370.2,0.5123]
[1756971660151,12.95096987,4370.3,4370.2,0.7443]
[1756971660342,13.25326987,4370.3,4370.2,0.7443]
[1756971660542,4.15696987,4370.3,4369.5,3.2078]
[1756971660849,0.6972,4369.5,4369.4,0.5123]
[1756971661052,0.6972,4369.5,4369.4,0.9494]
[1756971661743,0.1903,4369.9,4369.8,0.4097]
[1756971661946,0.4926,4369.9,4369.8,2.59292121]
[1756971662144,1.04690479,4369.9,4369.8,2.59292121]
[1756971662345,1.25150479,4369.9,4369.8,2.59292121]
[1756971662541,1.25150479,4369.9,4369.8,0.232]
[1756971663144,2.895026,4369.9,4369.8,0.232]
[1756971663448,2.895026,4369.9,4369.8,0.7443]
[1756971664744,1.25150479,4369.9,4369.8,0.9494]
[1756971669646,1.25150479,4369.9,4369.8,0.7174]
[1756971669846,1.25150479,4369.9,4369.8,0.9494]
[1756971671258,1.25150479,4369.9,4369.8,0.7174]
[1756971671459,1.25150479,4369.9,4369.8,0.9494]
[1756971671761,0.6972,4369.9,4369.8,0.9494]
[1756971672352,0.2994,4370.2,4369.8,0.9494]
[1756971672547,1.25638173,4370.1,4370.0,0.7049]
[1756971672953,1.25638173,4370.1,4370.0,0.5054]
[1756971673155,1.25638173,4370.1,4370.0,0.232]
[1756971673454,0.702,4369.8,4369.7,0.3084]
[1756971673659,0.702,4369.8,4369.7,0.5404]
[1756971674858,0.702,4369.8,4369.7,0.9369]
[1756971675062,0.209,4369.9,4369.8,0.7049]
[1756971675963,0.2994,4370.2,4369.8,0.3965]
[1756971676264,0.7634027,4370.1,4370.0,0.8224]
[1756971676566,0.5544027,4370.1,4370.0,0.8224]
[1756971677564,0.7634027,4370.1,4370.0,0.8224]
[1756971677867,3.2078,4370.3,4370.1,0.3084]
[1756971678065,3.7162,4370.3,4370.2,0.9359]
[1756971678458,4.27069794,4370.3,4370.2,0.9359]
[1756971679063,4.46429794,4370.3,4370.2,0.9359]
[1756971682361,4.46429794,4370.3,4370.2,0.5054]
[1756971682565,4.46429794,4370.3,4370.2,0.231]
[1756971682757,4.46429794,4370.3,4370.2,0.7364]
[1756971683866,4.46429794,4370.3,4370.2,0.9359]
[1756971686478,1.25649794,4370.3,4370.2,0.9359]
[1756971688176,0.702,4370.3,4370.2,0.9359]
[1756971688381,0.702,4370.3,4370.2,1.22576183]
[1756971688784,0.209,4370.3,4370.2,3.23238267]
[1756971689280,3.2078,4370.8,4370.7,0.3965]
[1756971689487,4.46378202,4370.8,4370.7,0.9359]
[1756971696986,0.702,4370.8,4370.7,0.9359]
[1756971698288,0.209,4370.8,4370.7,0.9359]
[1756971698488,0.702,4371.4,4371.3,0.3965]
[1756971698681,1.25563025,4371.4,4371.3,0.7049]
[1756971698886,1.25563025,4371.4,4371.3,0.5054]
[1756971699282,1.25563025,4371.4,4371.3,0.197]
[1756971699483,1.25563025,4371.4,4371.2,0.231]
[1756971699785,1.25563025,4371.3,4371.2,0.7364]
[1756971700891,0.702,4371.3,4371.2,0.7364]
[1756971703593,0.702,4371.3,4371.2,0.9354]
[1756971705295,3.22017,4371.5,4371.3,0.3095]
[1756971705595,3.22017,4371.5,4371.4,2.71032084]
[1756971705803,3.72337,4371.5,4371.4,2.71032084]
[1756971706298,3.92537,4371.5,4371.4,2.71032084]
[1756971706500,3.92537,4371.5,4371.4,0.7037]
[1756971707694,4.04687,4371.5,4371.4,0.7357]
[1756971708300,3.92537,4371.5,4371.4,0.7357]
[1756971708498,3.92537,4371.5,4371.4,0.9347]
[1756971708802,3.61737,4371.5,4371.4,2.94132084]
[1756971709301,3.92537,4371.5,4371.4,2.94132084]
[1756971711300,3.92537,4371.5,4371.4,2.71032084]
[1756971711598,4.04687,4371.5,4371.4,0.7357]
[1756971712097,0.83907,4371.5,4371.1,2.31612084]
[1756971712401,0.7052,4371.4,4371.3,0.3095]
[1756971712603,0.7052,4371.4,4371.3,0.5047]
[1756971712900,0.7052,4371.4,4371.3,0.7037]
[1756971716003,0.7052,4371.4,4371.3,0.9347]
[1756971717293,0.7052,4371.4,4371.3,1.23200677]
[1756971722699,0.01237,4371.5,4371.4,0.3095]
[1756971722901,0.01237,4371.5,4371.4,3.00762761]
[1756971724101,0.51557,4371.5,4371.4,3.23862761]
[1756971724307,0.71757,4371.5,4371.4,3.23862761]
[1756971724508,0.71757,4371.5,4371.4,1.23200677]
[1756971725697,0.83907,4371.5,4371.4,0.80200677]
[1756971725897,0.3972,4370.5,4370.4,0.3095]
[1756971726105,0.3972,4370.5,4370.3,0.3095]
[1756971726300,1.20547917,4370.4,4370.3,0.3095]
[1756971728409,1.20547917,4370.4,4370.3,0.231]
[1756971729508,1.20547917,4370.4,4370.1,0.3095]
[1756971729708,0.55337917,4370.3,4370.2,0.231]
[1756971729909,0.95057917,4370.3,4370.2,0.231]
[1756971730310,1.20547917,4370.3,4370.2,0.231]
[1756971731009,1.20547917,4370.3,4370.2,0.5405]
[1756971732316,0.6521,4370.3,4370.2,0.5405]
[1756971733713,0.6521,4370.3,4370.2,0.3095]
[1756971733925,0.6521,4370.3,4370.2,0.7357]
[1756971737509,0.3972,4370.3,4370.2,0.9354]
[1756971742322,1.89802539,4370.7,4370.5,0.118]
[1756971742525,2.27782539,4370.7,4370.6,0.5181]
[1756971742822,2.82944256,4370.7,4370.6,0.5181]
[1756971744222,2.82944256,4370.7,4370.6,0.3142]
[1756971744819,2.82944256,4370.7,4370.0,0.1175]
[1756971745018,0.55161717,4370.6,4370.5,0.118]
[1756971745223,0.74101717,4370.6,4370.5,0.8358]
[1756971745619,0.93141717,4370.6,4370.5,0.8358]
[1756971745924,1.18691717,4370.6,4370.5,0.5181]
[1756971746524,1.18691717,4370.6,4370.5,0.6361]
[1756971747822,1.18691717,4370.6,4370.5,0.3142]
[1756971749025,0.3798,4370.2,4369.8,3.2078]
[1756971749221,1.64252539,4370.7,4369.9,0.5181]
[1756971749222,0.6353,4370.0,4369.9,0.5181]
[1756971753428,1.18759072,4370.0,4369.9,0.5181]
[1756971755427,0.93209072,4370.0,4369.9,0.7178]
[1756971760633,1.18759072,4370.0,4369.9,0.7178]
[1756971761225,1.18759072,4370.0,4369.9,0.5181]
[1756971761824,0.93209072,4370.0,4369.9,0.7178]
[1756971771437,1.18699072,4370.0,4369.9,0.7178]
[1756971774635,0.93209072,4370.0,4369.9,0.7178]
[1756971777634,1.18699072,4370.0,4369.9,0.7178]
[1756971777839,0.93209072,4370.0,4369.9,0.7178]
[1756971778334,2.57461611,4370.0,4369.9,0.7178]
[1756971778637,2.82951611,4370.0,4369.9,0.7178]
[1756971781842,2.82951611,4370.0,4369.9,0.5181]
[1756971787854,2.82951611,4370.0,4369.6,0.2959]
[1756971788153,5.51482539,4369.7,4369.6,0.2959]
[1756971788354,6.06711611,4369.7,4369.6,0.2959]
[1756971788552,6.06711611,4369.7,4369.2,0.2959]
[1756971788852,0.6645,4369.3,4369.2,0.4982]
[1756971789154,0.6645,4369.3,4369.2,0.6923]
[1756971789155,0.96189072,4369.3,4369.2,0.6923]
[1756971789450,0.96189072,4369.3,4369.2,0.2959]
[1756971789653,1.21679072,4369.3,4369.2,0.2959]
[1756971789854,1.21679072,4369.3,4368.6,36.1688]
[1756971790055,0.2025,4368.8,4368.7,0.2959]
[1756971790352,2.30702539,4368.8,4368.7,0.72708]
[1756971790754,2.86050673,4368.8,4368.7,0.4982]
[1756971791348,2.30702539,4368.8,4368.7,0.4982]
[1756971791543,0.6645,4368.8,4368.7,0.4982]
[1756971791854,0.4096,4368.8,4368.7,0.6923]
[1756971793158,3.2078,4369.2,4369.1,0.6974]
[1756971793360,3.76095226,4369.2,4369.1,0.6974]
[1756971793742,4.16595226,4369.2,4369.1,0.6974]
[1756971793945,4.42165226,4369.2,4369.1,0.6974]
[1756971794354,4.42165226,4369.2,4369.1,0.4993]
[1756971796755,4.42165226,4369.2,4369.1,0.2948]
[1756971797655,0.2557,4369.1,4368.9,0.231]
[1756971797854,1.21385226,4369.0,4368.9,0.5258]
[1756971798960,1.21385226,4369.0,4368.9,0.2948]
[1756971799357,1.21385226,4369.0,4368.9,0.4993]
[1756971800356,1.21385226,4369.0,4368.9,0.6974]
[1756971802961,1.21385226,4369.0,4368.9,0.4993]
[1756971803162,3.22102624,4369.0,4368.9,0.2948]
[1756971804359,3.28172624,4369.0,4368.7,0.231]
[1756971804559,0.6607,4368.8,4368.6,0.2948]
[1756971804759,4.42165226,4368.7,4368.6,0.2948]
[1756971805161,4.42165226,4368.7,4368.6,0.4993]
[1756971807360,4.42165226,4368.7,4368.6,0.2948]
[1756971810762,4.42165226,4368.7,4368.6,0.4993]
[1756971812067,4.16595226,4368.7,4368.6,0.6974]
[1756971813169,4.42165226,4368.7,4368.6,0.6974]
[1756971813463,0.55315226,4368.7,4368.6,2.70457398]
[1756971813663,0.405,4369.1,4369.0,0.3231]
[1756971813973,0.95767737,4369.1,4369.0,0.3231]
[1756971814163,0.95767737,4369.1,4369.0,0.6179]
[1756971814864,0.55267737,4369.1,4369.0,0.816]
[1756971818270,0.76087737,4369.1,4369.0,0.816]
[1756971818466,0.95767737,4369.1,4369.0,1.047]
[1756971818666,1.21337737,4369.1,4369.0,1.047]
[1756971818967,0.95767737,4369.1,4369.0,1.047]
[1756971821173,1.21337737,4369.1,4369.0,1.047]
[1756971821566,1.21337737,4369.1,4369.0,0.816]
[1756971821771,1.21337737,4369.1,4369.0,0.6179]
[1756971822671,1.21337737,4369.1,4369.0,0.4993]
[1756971823173,1.21337737,4369.1,4369.0,0.6179]
[1756971823578,1.21337737,4369.1,4369.0,0.8081]
[1756971823876,0.95767737,4369.1,4369.0,0.8081]
[1756971824571,1.21347737,4369.1,4369.0,0.8081]
[1756971825874,1.21347737,4369.1,4369.0,0.6179]
[1756971826171,0.95767737,4369.1,4369.0,0.8081]
[1756971827474,1.21347737,4369.1,4369.0,0.4134]
[1756971827674,1.21347737,4369.1,4369.0,0.2948]
[1756971828370,1.21347737,4369.1,4368.6,0.2964]
[1756971828578,0.6545,4368.8,4368.7,0.79228743]
[1756971828774,1.20717737,4368.8,4368.7,0.79228743]
[1756971830580,1.20717737,4368.8,4368.7,0.60128743]
[1756971831085,1.20717737,4368.8,4368.7,0.2964]
[1756971831276,1.20717737,4368.8,4368.1,0.2964]
[1756971831277,0.2558,4368.7,4368.1,0.2964]
[1756971831580,0.1895,4368.2,4368.1,0.6776]
[1756971831779,0.1895,4368.2,4368.1,1.20665029]
[1756971833380,0.1895,4368.6,4368.5,0.7962]
[1756971833584,0.7429042,4368.6,4368.5,0.7962]
[1756971833782,0.5534042,4368.6,4368.5,0.7962]
[1756971834084,0.7429042,4368.6,4368.5,0.7962]
[1756971834682,0.9521042,4368.6,4368.5,0.7962]
[1756971835081,0.5534042,4368.6,4368.5,0.7962]
[1756971835881,0.7429042,4368.6,4368.5,0.7962]
[1756971837688,0.5534042,4368.6,4368.5,0.7962]
[1756971838186,0.7429042,4368.6,4368.5,0.7962]
[1756971838578,0.7429042,4368.6,4368.5,1.0272]
[1756971838779,0.9521042,4368.6,4368.5,1.0272]
[1756971840190,0.9521042,4368.6,4368.5,0.7962]
[1756971840489,0.9521042,4368.6,4368.5,1.0272]
[1756971840884,0.5534042,4368.6,4368.5,1.0272]
[1756971841085,0.7429042,4368.6,4368.5,1.0272]